bitfinex/quotes_SOLUSD_20230702
["timestamp","ask_amount","ask_price","bid_price","bid_amount"]
[1688276724699,22.412,18.874,18.86,20.01]
[1688276724902,22.412,18.874,18.864,22.423]
[1688276726999,22.411,18.874,18.864,22.423]
[1688276727295,57.682,18.88,18.864,22.423]
[1688276727496,131.12175136,18.884,18.864,22.423]
[1688276728089,237.18365236,18.884,18.864,22.423]
[1688276728485,22.407,18.878,18.864,22.423]
[1688276731400,22.407,18.878,18.865,55.0]
[1688276731599,22.407,18.878,18.868,22.417]
[1688276732888,22.407,18.878,18.867,22.419]
[1688276733188,22.407,18.878,18.862,163.073]
[1688276733189,22.407,18.878,18.866,22.42]
[1688276737812,22.407,18.878,18.862,26.51191739]
[1688276738008,22.407,18.878,18.861,90.4529]
[1688276739015,22.407,18.878,18.866,22.42]
[1688276743205,22.407,18.878,18.866,33.25719922]
[1688276743511,22.407,18.878,18.866,22.42]
[1688276743704,26.08837594,18.885,18.872,22.413]
[1688276743705,188.97337594,18.885,18.872,22.413]
[1688276743894,22.403,18.882,18.872,22.413]
[1688276744099,22.403,18.882,18.866,105.321]
[1688276744100,127.635,18.882,18.873,10.83719922]
[1688276744295,127.635,18.882,18.862,92.4729]
[1688276744296,20.11,18.88,18.862,92.4729]
[1688276744512,185.379,18.875,18.862,114.8979]
[1688276744710,185.379,18.875,18.862,22.425]
[1688276745095,185.379,18.875,18.862,33.26219922]
[1688276745314,80.107,18.875,18.863,10.83719922]
[1688276745515,80.107,18.875,18.866,22.42]
[1688276745812,22.411,18.875,18.866,22.42]
[1688276746813,22.407,18.878,18.867,10.83719922]
[1688276747112,22.407,18.878,18.87,22.416]
[1688276747614,22.407,18.878,18.87,33.25319922]
[1688276748918,22.407,18.878,18.864,57.726]
[1688276749216,22.407,18.878,18.869,22.416]
[1688276749914,22.407,18.878,18.864,57.726]
[1688276750298,22.42,18.881,18.869,22.416]
[1688276750513,22.408,18.877,18.869,22.416]
[1688276752715,22.407,18.878,18.869,22.416]
[1688276753106,22.42,18.881,18.869,22.416]
[1688276753302,57.666,18.885,18.869,22.416]
[1688276753804,22.403,18.882,18.869,22.416]
[1688276754916,22.403,18.882,18.87,20.11]
[1688276755118,22.403,18.882,18.873,22.412]
[1688276757206,57.658,18.888,18.873,22.412]
[1688276757406,22.401,18.883,18.873,22.412]
[1688276758716,22.4,18.884,18.873,22.412]
[1688276759119,57.658,18.888,18.873,22.412]
[1688276759120,22.395,18.888,18.873,22.412]
[1688276759424,57.631,18.897,18.873,33.24919922]
[1688276759719,57.631,18.897,18.87,145.359]
[1688276759720,22.387,18.895,18.874,65.83719922]
[1688276759908,22.387,18.895,18.875,20.0]
[1688276760302,22.387,18.895,18.876,10.83719922]
[1688276760505,22.387,18.895,18.877,20.0]
[1688276760911,22.387,18.895,18.884,22.399]
[1688276763218,22.386,18.896,18.884,22.399]
[1688276763827,57.604,18.905,18.884,22.399]
[1688276764126,25.98460942,18.909,18.892,185.207]
[1688276764310,57.604,18.906,18.892,185.207]
[1688276764506,22.378,18.902,18.892,80.032]
[1688276764924,22.378,18.903,18.892,80.032]
[1688276765115,22.377,18.904,18.892,80.032]
[1688276765311,57.604,18.906,18.892,80.032]
[1688276765515,22.375,18.905,18.892,80.032]
[1688276766319,26.02561448,18.91,18.892,80.032]
[1688276766624,105.063,18.913,18.892,80.032]
[1688276767824,21.874,18.906,18.892,80.032]
[1688276769414,79.96,18.907,18.892,80.032]
[1688276769613,22.373,18.907,18.892,80.032]
[1688276769816,22.371,18.908,18.892,80.032]
[1688276772013,55.0,18.907,18.892,80.032]
[1688276772422,22.376,18.904,18.892,80.032]
[1688276774233,55.0,18.907,18.892,80.032]
[1688276774428,55.0,18.908,18.892,80.032]
[1688276774824,22.375,18.905,18.892,80.032]
[1688276775031,22.374,18.906,18.892,80.032]
[1688276776343,22.374,18.906,18.892,22.39]
[1688276776827,22.374,18.906,18.885,57.664]
[1688276776828,19.96,18.9,18.885,57.664]
[1688276777030,22.386,18.896,18.889,22.393]
[1688276777719,22.386,18.896,18.888,22.394]
[1688276778321,22.386,18.896,18.887,22.395]
[1688276778519,22.386,18.896,18.886,22.396]
[1688276781234,22.386,18.896,18.881,99.2972]
[1688276781417,55.0,18.895,18.88,22.403]
[1688276781626,55.0,18.895,18.86,19.97]
[1688276781627,20.04,18.89,18.878,22.406]
[1688276781924,22.397,18.887,18.878,22.406]
[1688276782328,22.397,18.887,18.871,105.289]
[1688276782727,22.397,18.887,18.865,98.3082]
[1688276782728,22.395,18.888,18.877,80.096]
[1688276783731,217.799,18.895,18.877,80.096]
[1688276783937,57.636,18.895,18.878,20.0]
[1688276784143,57.627,18.898,18.883,22.4]
[1688276784637,57.636,18.895,18.883,22.4]
[1688276784839,22.389,18.893,18.883,22.4]
[1688276787224,57.636,18.895,18.883,22.4]
[1688276787428,22.376,18.904,18.884,20.0]
[1688276787627,27.10980501,18.912,18.89,205.268]
[1688276787829,57.575,18.915,18.891,145.0794]
[1688276788134,22.368,18.911,18.897,80.008]
[1688276789331,57.575,18.914,18.902,22.378]
[1688276790043,57.571,18.916,18.902,22.378]
[1688276790542,115.187,18.916,18.902,22.378]
[1688276790849,57.616,18.916,18.902,22.378]
[1688276791950,22.366,18.913,18.902,22.378]
[1688276792132,57.616,18.916,18.902,22.378]
[1688276792446,22.365,18.914,18.902,22.378]
[1688276792628,22.364,18.915,18.902,22.378]
[1688276794946,55.0,18.914,18.902,22.378]
[1688276795444,22.365,18.914,18.902,22.378]
[1688276795844,55.0,18.913,18.902,22.378]
[1688276796039,77.363,18.915,18.902,22.378]
[1688276796933,55.0,18.915,18.902,22.378]
[1688276797134,77.364,18.915,18.902,22.378]
[1688276797746,79.978,18.916,18.902,22.378]
[1688276797941,40.09,18.93,18.91,79.955]
[1688276798150,20.04,18.93,18.91,79.955]
[1688276798341,104.942,18.935,18.91,99.805]
[1688276798342,57.517,18.934,18.91,99.805]
[1688276798654,40.09,18.93,18.911,149.09844651]
[1688276798846,62.436,18.93,18.916,79.929]
[1688276799345,40.09,18.93,18.917,20.0]
[1688276799551,19.94,18.94,18.917,20.0]
[1688276799552,22.34,18.935,18.921,184.92]
[1688276800051,26.33858276,18.94,18.921,184.92]
[1688276800253,22.338,18.937,18.921,184.92]
[1688276801048,22.338,18.937,18.921,79.908]
[1688276802753,22.343,18.932,18.921,79.908]
[1688276803542,22.343,18.932,18.925,22.351]
[1688276803755,22.342,18.933,18.925,22.351]
[1688276805853,57.507,18.937,18.925,22.351]
[1688276805854,22.339,18.936,18.925,22.351]
[1688276806054,163.252346,18.94,18.925,22.351]
[1688276806253,22.338,18.936,18.925,22.351]
[1688276806940,20.0,18.935,18.918,57.562]
[1688276807139,22.345,18.93,18.92,22.356]
[1688276807343,22.345,18.93,18.919,22.357]
[1688276807661,55.0,18.929,18.915,57.57]
[1688276807859,22.351,18.925,18.919,22.357]
[1688276808354,22.351,18.925,18.905,105.098]
[1688276808555,55.0,18.924,18.909,57.589]
[1688276808854,55.0,18.924,18.898,39.03052762]
[1688276808855,42.277,18.92,18.899,21.163477]
[1688276809057,42.277,18.92,18.903,22.377]
[1688276809058,55.0,18.919,18.903,22.377]
[1688276809245,22.364,18.915,18.895,57.632]
[1688276809560,55.0,18.914,18.9,22.38]
[1688276809755,22.369,18.91,18.9,22.38]
[1688276810056,22.365,18.914,18.901,1.25397691]
[1688276810249,22.361,18.917,18.905,79.976]
[1688276810638,64.63,18.918,18.905,79.976]
[1688276810841,22.355,18.922,18.909,79.958]
[1688276811041,57.538,18.927,18.908,105.082]
[1688276811042,22.354,18.923,18.913,22.364]
[1688276812046,115.076,18.927,18.913,22.364]
[1688276812047,57.538,18.927,18.913,22.364]
[1688276812249,57.52,18.933,18.914,55.0]
[1688276812559,22.348,18.928,18.919,22.357]
[1688276813547,79.873,18.928,18.919,22.357]
[1688276813945,22.348,18.928,18.919,22.357]
[1688276814555,48.483906,18.928,18.914,57.573]
[1688276815150,48.483906,18.928,18.919,22.358]
[1688276817263,57.509,18.937,18.92,20.0]
[1688276817461,57.509,18.937,18.926,22.35]
[1688276817663,57.527,18.935,18.926,17.37]
[1688276817855,104.869,18.948,18.926,17.37]
[1688276818060,39.97,18.95,18.926,122.357]
[1688276818360,22.339,18.936,18.926,17.37]
[1688276818970,57.472,18.949,18.926,122.357]
[1688276819156,22.328,18.945,18.926,17.37]
[1688276819552,79.873,18.945,18.926,17.37]
[1688276820267,79.873,18.945,18.934,79.854]
[1688276820659,79.873,18.945,18.934,22.34]
[1688276821262,57.545,18.945,18.934,22.34]
[1688276821447,57.545,18.945,18.938,79.839]
[1688276821650,22.324,18.948,18.938,79.839]
[1688276822365,22.323,18.949,18.938,79.839]
[1688276822564,22.322,18.95,18.938,79.839]
[1688276823052,57.449,18.956,18.938,90.67619922]
[1688276823246,22.321,18.95,18.938,90.67619922]
[1688276823457,22.321,18.95,18.938,22.336]
[1688276823772,22.321,18.95,18.938,22.335]
[1688276823960,22.321,18.95,18.931,97.8834]
[1688276824472,55.0,18.949,18.938,22.335]
[1688276824674,22.326,18.946,18.938,22.335]
[1688276825273,79.805,18.946,18.932,95.0979]
[1688276825451,22.326,18.946,18.932,95.0979]
[1688276825653,102.13,18.947,18.938,22.335]
[1688276826075,22.325,18.947,18.938,22.335]
[1688276826254,9.0610835,18.955,18.938,22.335]
[1688276826571,22.319,18.953,18.938,22.335]
[1688276827073,22.319,18.953,18.939,20.0]
[1688276827363,104.818,18.956,18.943,79.816]
[1688276827567,26.33198182,18.964,18.943,79.816]
[1688276827568,22.312,18.958,18.943,79.816]
[1688276827761,57.425,18.964,18.948,79.796]
[1688276827762,22.312,18.959,18.948,79.796]
[1688276828367,9.0610835,18.966,18.948,90.63319922]
[1688276828562,57.425,18.96,18.948,79.796]
[1688276828765,79.735,18.96,18.952,22.319]
[1688276828969,66.4760835,18.968,18.952,22.319]
[1688276829171,22.307,18.963,18.952,22.319]
[1688276829554,113.7890835,18.973,18.952,22.319]
[1688276829761,57.415,18.965,18.952,22.319]
[1688276829961,22.307,18.963,18.952,22.319]
[1688276830375,57.415,18.965,18.952,22.319]
[1688276831274,22.306,18.964,18.952,22.319]
[1688276832162,57.411,18.969,18.952,22.319]
[1688276832163,22.305,18.965,18.952,22.319]
[1688276833167,22.308,18.962,18.952,22.319]
[1688276833765,22.307,18.963,18.952,22.319]
[1688276834281,22.306,18.964,18.952,22.319]
[1688276834460,22.304,18.965,18.952,22.319]
[1688276834665,22.304,18.965,18.952,33.15619922]
[1688276835083,55.0,18.964,18.952,22.319]
[1688276835293,22.307,18.963,18.952,22.319]
[1688276835580,55.0,18.962,18.952,22.319]
[1688276835774,22.309,18.961,18.952,22.319]
[1688276836281,57.411,18.967,18.952,22.319]
[1688276836980,79.713,18.967,18.952,22.319]
[1688276837183,57.411,18.967,18.952,22.319]
[1688276837360,22.299,18.97,18.953,55.0]
[1688276837567,22.293,18.975,18.959,79.75]
[1688276837882,22.293,18.975,18.953,161.72909922]
[1688276837883,22.283,18.983,18.966,184.487]
[1688276838063,66.4230835,18.985,18.966,184.487]
[1688276838583,22.285,18.981,18.966,184.487]
[1688276838886,22.285,18.981,18.966,79.721]
[1688276839382,104.647,18.985,18.967,20.0]
[1688276839591,104.647,18.985,18.972,79.694]
[1688276839779,104.647,18.985,18.972,22.295]
[1688276839780,22.281,18.985,18.972,22.295]
[1688276840080,22.281,18.985,18.967,115.59319922]
[1688276840081,31.3420835,18.985,18.963,200.6729]
[1688276840282,9.0610835,18.984,18.969,22.298]
[1688276840481,79.663,18.98,18.969,22.299]
[1688276840683,79.663,18.98,18.963,258.0969]
[1688276840870,22.293,18.975,18.969,22.299]
[1688276841192,22.293,18.975,18.963,258.0969]
[1688276841193,55.0,18.974,18.967,22.3]
[1688276841374,55.0,18.974,18.963,200.6729]
[1688276841375,55.0,18.974,18.956,57.446]
[1688276841376,20.0,18.973,18.956,57.446]
[1688276841568,20.0,18.973,18.951,92.1677]
[1688276841569,22.3,18.969,18.951,92.1677]
[1688276841773,22.3,18.969,18.952,77.459]
[1688276842079,22.3,18.969,18.953,22.317]
[1688276842080,55.0,18.968,18.953,22.317]
[1688276842282,22.306,18.964,18.953,114.4847]
[1688276842579,57.402,18.972,18.954,10.83719922]
[1688276842784,22.295,18.973,18.961,79.739]
[1688276842976,22.295,18.973,18.965,22.303]
[1688276843286,22.293,18.975,18.965,22.303]
[1688276843485,22.289,18.978,18.966,10.83719922]
[1688276843790,57.379,18.979,18.969,79.705]
[1688276844083,57.358,18.986,18.969,79.705]
[1688276844084,57.359,18.986,18.969,79.705]
[1688276844269,22.283,18.983,18.974,22.292]
[1688276844666,22.283,18.983,18.974,33.12919922]
[1688276844866,22.279,18.986,18.974,33.12919922]
[1688276845083,22.278,18.988,18.975,10.83719922]
[1688276845282,22.278,18.988,18.978,22.287]
[1688276846171,104.599,18.997,18.978,33.12419922]
[1688276846367,57.318,19.0,18.979,10.83719922]
[1688276846574,22.271,18.994,18.985,22.28]
[1688276847070,79.589,18.994,18.985,22.28]
[1688276847270,57.318,18.994,18.985,22.28]
[1688276847790,57.322,18.998,18.985,22.28]
[1688276847984,22.27,18.994,18.984,22.28]
[1688276848195,9.0610835,18.997,18.985,22.279]
[1688276848370,22.264,19.0,18.986,30.83719922]
[1688276848577,22.264,19.0,18.99,22.274]
[1688276848872,57.363,18.999,18.991,30.83719922]
[1688276849075,22.262,19.001,18.993,22.27]
[1688276849274,22.263,19.0,18.993,22.27]
[1688276849589,22.263,19.0,18.993,22.271]
[1688276849797,57.307,19.0,18.993,22.271]
[1688276850783,79.57,19.0,18.993,22.271]
[1688276851090,79.57,19.0,18.98,108.1389]
[1688276851276,79.57,19.0,18.99,22.273]
[1688276851479,79.57,19.0,18.984,57.362]
[1688276851785,79.57,19.0,18.988,22.276]
[1688276851989,22.268,18.996,18.988,22.276]
[1688276852189,55.0,18.995,18.988,22.276]
[1688276852372,55.0,18.995,18.979,104.69]
[1688276852373,22.271,18.993,18.979,104.69]
[1688276852574,55.0,18.992,18.975,104.713]
[1688276852793,22.278,18.987,18.975,57.391]
[1688276852990,55.0,18.986,18.979,22.287]
[1688276853292,22.282,18.984,18.978,22.288]
[1688276853472,55.0,18.983,18.978,22.288]
[1688276853880,9.0610835,18.995,18.978,22.288]
[1688276853881,57.3,19.006,18.979,20.0]
[1688276854084,22.263,19.0,18.987,22.278]
[1688276854275,22.263,19.0,18.991,22.273]
[1688276854475,22.263,19.0,18.984,104.664]
[1688276854476,22.263,19.0,18.99,22.273]
[1688276854886,22.263,19.0,18.991,20.0]
[1688276855084,161.831,19.008,18.993,22.27]
[1688276855398,22.259,19.004,18.993,22.27]
[1688276855596,57.293,19.008,18.993,22.27]
[1688276855898,22.259,19.004,18.993,22.27]
[1688276856585,25.91346396,19.01,18.993,22.27]
[1688276856780,22.255,19.007,18.993,22.27]
[1688276857700,9.99,19.02,18.993,22.27]
[1688276857701,57.272,19.015,18.993,22.27]
[1688276857995,22.249,19.012,18.999,79.58]
[1688276858493,22.249,19.012,19.0,20.0]
[1688276858791,79.521,19.012,19.002,22.259]
[1688276858991,79.521,19.012,18.999,22.264]
[1688276859183,79.521,19.012,18.998,22.264]
[1688276861882,55.0,19.011,18.998,22.264]
[1688276862195,22.254,19.008,18.998,22.264]
[1688276862396,22.256,19.006,18.998,22.264]
[1688276862697,77.257,19.005,18.998,22.264]
[1688276862895,77.257,19.005,18.997,22.266]
[1688276863093,77.257,19.005,18.986,57.355]
[1688276863292,77.257,19.005,18.984,104.663]
[1688276863293,20.0,19.004,18.989,22.274]
[1688276863593,79.58,19.0,18.988,22.276]
[1688276863899,22.268,18.996,18.988,22.276]
[1688276864087,22.271,18.993,18.988,22.276]
[1688276864401,20.0,18.992,18.976,162.095]
[1688276864695,22.278,18.988,18.981,22.284]
[1688276864884,22.278,18.988,18.976,162.095]
[1688276864885,22.278,18.988,18.98,22.285]
[1688276865080,55.0,18.987,18.98,22.285]
[1688276865277,22.28,18.985,18.98,22.285]
[1688276865484,55.0,18.984,18.98,22.285]
[1688276865792,77.282,18.984,18.98,22.285]
[1688276865983,77.282,18.984,18.973,57.395]
[1688276866184,77.282,18.984,18.976,22.29]
[1688276866800,77.282,18.984,18.971,98.7499]
[1688276866987,77.282,18.984,18.977,22.289]
[1688276867182,77.282,18.984,18.976,22.29]
[1688276867584,77.282,18.984,18.975,22.291]
[1688276867999,55.0,18.983,18.975,22.291]
[1688276868300,22.285,18.981,18.975,22.291]
[1688276868498,55.0,18.98,18.969,57.406]
[1688276868685,55.0,18.98,18.97,20.0]
[1688276868881,55.0,18.98,18.972,22.295]
[1688276870698,55.0,18.981,18.972,22.295]
[1688276870999,22.286,18.98,18.972,22.295]
[1688276871189,55.0,18.979,18.972,22.295]
[1688276871388,77.287,18.979,18.972,22.295]
[1688276872500,77.287,18.979,18.97,20.0]
[1688276872701,77.287,18.979,18.969,20.0]
[1688276873083,77.282,18.985,18.972,22.295]
[1688276873499,57.332,18.995,18.972,22.295]
[1688276873994,57.405,18.989,18.973,55.0]
[1688276874195,57.405,18.989,18.977,184.372]
[1688276874394,22.274,18.99,18.977,184.372]
[1688276875592,22.274,18.99,18.977,79.671]
[1688276875792,22.274,18.991,18.977,184.376]
[1688276876001,57.325,18.997,18.978,20.0]
[1688276876216,22.275,18.99,18.983,22.282]
[1688276877989,57.325,18.992,18.983,22.282]
[1688276878504,57.325,18.992,18.975,57.389]
[1688276878505,22.274,18.991,18.975,57.389]
[1688276878689,22.274,18.991,18.978,22.288]
[1688276878892,114.665,18.992,18.969,22.298]
[1688276878893,184.323,18.983,18.969,22.298]
[1688276879098,184.393,18.976,18.96,22.309]
[1688276879485,22.297,18.971,18.96,22.309]
[1688276879684,22.3,18.969,18.96,22.309]
[1688276879906,55.0,18.975,18.96,22.309]
[1688276880090,57.441,18.976,18.96,32.269]
[1688276880289,104.647,18.988,18.96,32.269]
[1688276880490,22.291,18.976,18.969,22.299]
[1688276880698,22.294,18.974,18.969,22.299]
[1688276880907,22.294,18.974,18.963,57.426]
[1688276881089,22.298,18.97,18.962,98.3747]
[1688276881286,55.0,18.969,18.956,98.3747]
[1688276881523,22.299,18.969,18.96,22.309]
[1688276881716,55.0,18.968,18.96,22.309]
[1688276882007,55.0,18.968,18.95,20.79719922]
[1688276882008,22.303,18.966,18.953,57.455]
[1688276882192,55.0,18.968,18.956,22.313]
[1688276882193,22.307,18.963,18.956,22.313]
[1688276882390,22.307,18.963,18.951,98.3747]
[1688276882589,55.0,18.962,18.952,20.0]
[1688276882801,55.0,18.962,18.952,42.318]
[1688276882998,22.309,18.961,18.952,42.318]
[1688276883194,22.311,18.959,18.952,42.318]
[1688276883401,22.311,18.96,18.952,42.318]
[1688276883600,55.0,18.959,18.952,42.318]
[1688276885410,55.0,18.959,18.952,20.0]
[1688276885411,77.311,18.959,18.952,20.0]
[1688276885611,134.75,18.959,18.952,20.0]
[1688276885909,134.75,18.959,18.951,22.32]
[1688276886094,134.75,18.959,18.952,20.0]
[1688276886503,77.311,18.959,18.952,20.0]
[1688276886705,77.311,18.959,18.943,57.486]
[1688276886903,77.311,18.959,18.938,104.918]
[1688276887102,77.311,18.959,18.942,20.0]
[1688276887302,86.3720835,18.959,18.942,20.0]
[1688276887613,9.0610835,18.958,18.942,42.33]
[1688276887811,79.775,18.954,18.942,42.33]
[1688276888001,55.0,18.953,18.942,42.33]
[1688276888202,22.322,18.95,18.942,42.33]
[1688276888402,55.0,18.949,18.942,42.33]
[1688276888604,22.325,18.947,18.942,42.33]
[1688276888803,55.0,18.946,18.942,42.33]
[1688276889115,54.5,18.946,18.942,42.33]
[1688276889311,162.205,18.964,18.942,42.33]
[1688276889517,22.313,18.958,18.942,42.33]
[1688276890506,22.313,18.958,18.947,22.324]
[1688276891312,55.0,18.957,18.947,22.324]
[1688276891515,22.317,18.954,18.947,22.324]
[1688276891818,55.0,18.953,18.944,22.327]
[1688276892500,77.319,18.953,18.944,22.327]
[1688276896720,77.319,18.953,18.942,20.0]
[1688276896721,77.319,18.953,18.942,42.33]
[1688276899626,22.319,18.953,18.942,42.33]
[1688276901118,55.0,18.952,18.942,42.33]
[1688276901903,159.901,18.952,18.942,42.33]
[1688276902817,182.22,18.952,18.942,42.33]
[1688276912342,182.221,18.952,18.942,42.33]
[1688276912634,182.221,18.952,18.942,20.0]
[1688276912834,182.221,18.952,18.942,42.33]
[1688276913924,162.233,18.961,18.942,99.821]
[1688276915842,22.316,18.955,18.942,99.821]
[1688276916342,22.313,18.957,18.942,99.821]
[1688276917642,22.313,18.957,18.942,42.33]
[1688276917840,55.0,18.956,18.942,42.33]
[1688276918037,22.319,18.952,18.942,22.33]
[1688276918236,22.319,18.952,18.941,22.331]
[1688276918538,22.324,18.948,18.94,22.332]
[1688276918839,22.328,18.945,18.939,22.334]
[1688276919036,55.0,18.944,18.939,22.334]
[1688276919238,77.329,18.944,18.939,22.334]
[1688276919435,55.0,18.944,18.939,22.334]
[1688276920439,77.329,18.944,18.938,22.335]
[1688276920644,77.329,18.944,18.932,57.519]
[1688276920936,77.329,18.944,18.931,97.1848]
[1688276921141,77.329,18.944,18.932,20.0]
[1688276921339,77.329,18.944,18.935,22.338]
[1688276921740,77.329,18.944,18.932,20.0]
[1688276922048,55.0,18.943,18.934,22.34]
[1688276922224,22.333,18.941,18.934,22.34]
[1688276922543,55.0,18.94,18.934,22.34]
[1688276922843,22.335,18.939,18.934,22.34]
[1688276923041,57.506,18.948,18.934,22.34]
[1688276924240,79.831,18.948,18.934,22.34]
[1688276924641,104.824,18.956,18.935,55.0]
[1688276924844,22.321,18.951,18.941,22.332]
[1688276925144,57.516,18.95,18.941,22.332]
[1688276925627,22.323,18.949,18.941,22.332]
[1688276925829,55.0,18.948,18.941,22.332]
[1688276926054,55.0,18.949,18.941,22.332]
[1688276926346,77.323,18.949,18.941,22.332]
[1688276926542,55.0,18.949,18.941,22.332]
[1688276926729,77.323,18.949,18.941,22.332]
[1688276938142,22.323,18.949,18.941,22.332]
[1688276938339,22.321,18.951,18.942,20.0]
[1688276938553,104.815,18.958,18.944,22.328]
[1688276938858,22.317,18.954,18.944,22.328]
[1688276940244,22.317,18.954,18.942,115.1172]
[1688276940766,22.317,18.954,18.942,92.7872]
[1688276941067,55.0,18.953,18.942,115.1182]
[1688276941561,104.815,18.959,18.942,115.1182]
[1688276941769,22.315,18.956,18.942,115.1182]
[1688276942471,104.815,18.959,18.942,125.95539922]
[1688276942765,104.735,18.972,18.942,125.95539922]
[1688276942766,104.67,18.984,18.95,39.67]
[1688276942950,57.37,18.982,18.96,204.293]
[1688276943146,22.281,18.985,18.961,75.0]
[1688276943351,57.35,18.989,18.969,184.45]
[1688276943352,22.282,18.984,18.969,184.45]
[1688276943648,79.646,18.984,18.969,22.298]
[1688276944252,111.0050835,18.984,18.969,22.298]
[1688276944663,55.0,18.983,18.969,22.298]
[1688276944868,79.667,18.979,18.969,22.298]
[1688276945054,55.0,18.978,18.969,22.298]
[1688276945362,22.292,18.976,18.969,22.298]
[1688276945664,22.294,18.974,18.969,22.298]
[1688276945862,55.0,18.973,18.969,22.298]
[1688276946070,77.295,18.973,18.969,22.298]
[1688276946453,77.295,18.973,18.962,57.428]
[1688276946863,77.295,18.973,18.965,22.303]
[1688276947063,154.59,18.973,18.959,57.439]
[1688276947364,154.59,18.973,18.956,10.83719922]
[1688276947365,20.0,18.972,18.956,10.83719922]
[1688276947574,22.301,18.968,18.961,22.308]
[1688276947750,55.0,18.967,18.96,22.309]
[1688276948064,22.304,18.965,18.96,22.309]
[1688276948253,55.0,18.964,18.96,22.309]
[1688276948571,20.0,18.972,18.96,22.309]
[1688276948868,77.297,18.971,18.96,33.14619922]
[1688276949451,22.297,18.971,18.96,33.14619922]
[1688276949860,55.0,18.97,18.96,33.14619922]
[1688276950065,22.301,18.967,18.96,33.14619922]
[1688276950267,55.0,18.966,18.96,33.14619922]
[1688276950766,77.303,18.966,18.96,33.14619922]
[1688276951157,55.0,18.966,18.96,33.14619922]
[1688276952268,77.303,18.966,18.96,22.309]
[1688276952871,55.0,18.966,18.96,22.309]
[1688276953074,55.0,18.967,18.96,22.309]